{"text_format":"3","workbook":"xlsx","n_sheets":1,"sheets":["Kriterienkatalog ab 6. Dan"],"read":"whole","date_system":"1900"}

{"sheet":"Kriterienkatalog ab 6. Dan","index":0,"n_rows":144,"n_cols":7,"rows_kept":144,"merged":[[2,6,2,7],[21,2,21,5],[55,6,58,6],[125,1,125,2],[127,1,127,2],[129,1,129,2],[133,1,133,2]]}
[null,"Kriterienkatalog für Dan-Prüfungen ab 6. Dan"]
[]
["Antrag zum ",{"$nulls":3},"Letzte Prüfung (Datum/Ort):"]
[]
["Grundsätzliche Richtlinien:"]
["Ein rechtlicher Anspruch auf die Zulassung zur Dan-Prüfung ab 6. Dan besteht nicht und ergibt sich nicht automatisch."]
["Die Zulassung zur Teilnahne an einer höheren Dan-Prüfung durch die Stilrichtung/den Prüfungsbereich soll eine Auszeichnung für Karatekas sein, hierzu bedarf es "]
["überdurchschnittlicher Leistungen auf dem Gebiet des Karate und für den Verband. Kobudo und Kyusho sind hiervon ausgenommen."]
["Es handelt sich bei jeder Zulassung immer um eine Einzelentscheidung."]
["Der Antragsteller/innen wird verpflichtet die geforderten Angaben durch Unterlagen zu belegen."]
["Alle Angaben sind von dem jeweiligen Stilrichtung/Prüfungsbereich Land zwingend zu prüfen."]
["Die einzelnen Leistungen und Zugehörigkeiten werden über ein Punktesystem bewertet."]
["Diese Bewertungskriterien sind ohne Ausnahme für alle Antragsteller/innen gleich und dienen der Beurteilung ohne Ansehen der Person. "]
["Die Felder sind nach Prüfung der Unterlagen und Diskussion von dem/der Sitzungsführenden oder Protokollanten/in auszufüllen."]
["Die eingereichten Unterlagen werden in Kopien an diesen Antrag angeheftet."]
["Für Neumitglieder aus fremden Verbänden besteht 5 Jahre Sperrfrist für einen solchen Antrag."]
["Dieser Kriterienkatalog ist für alle Stilrichtungen/Prüfungsbereiche im DKV verpflichtend."]
["Es gilt die Verfahrensordnung des DKV.",null,"Punke","Alter","Vorb.-Zeit","DKV-Mitglied"]
["6. Dan","Mindestpunktzahl, Mindestalter, Vorbereitungszeit, Mitgliedschaft",15,45,"5 Jahre","5 Jahre"]
["7. Dan","Mindestpunktzahl, Mindestalter, Vorbereitungszeit, Mitgliedschaft",25,50,"5 Jahre","5 Jahre"]
["8. Dan","Mindestpunktzahl, Mindestalter, Vorbereitungszeit, Mitgliedschaft",35,60,"5 Jahre","5 Jahre"]
["9. Dan","Verleihung durch DKV-Bundesversammlung"]
[]
["Name Antragsteller/in:"]
["Geburtsdatum:"]
["Alter:",{"$f":"IF(B25=\"\",\"\",(TODAY()-B25)/365.25)","v":""}]
["Verein:"]
["Mitglied im DKV seit:"]
["DKV-Mitgliedsnummer:"]
["E-Mail:"]
["Telefon:"]
[]
[]
[{"$nulls":3},"Bei den Punkten gibt es keine Addition"]
["Trainerlizenzen:","Nur gültige Lizenzen, nur die höchste Lizenz von C, B, A zählt","Punkte:",1,2,3,4]
["Trainer C","von-bis",{"$f":"SUM(D36:G36)","v":0},null,0,0,0]
["Trainer B","von-bis",{"$f":"SUM(D37:G37)","v":0},0,null,0,0]
["Trainer A","von-bis",0,0,0,null,0]
["Diplomtrainer/innen","von-bis",0,0,0,0]
["Zwischensumme:",null,{"$f":"SUM(C36:C39)","v":0}]
[]
["Weitere Trainerlizenzen:","Nur gültige und vom DOSB anerkannte Lizenzen\nz. B.: Gewaltschutz, Karatelehrer, Gesundheit, SV, Sound, …","Punkte:",1,2,3,4]
["Lizenz ","von-bis",{"$f":"SUM(D43:G43)","v":0},0,null,0,0]
["Lizenz ","von-bis",{"$f":"SUM(D44:G44)","v":0},0,null,0,0]
["Lizenz ","von-bis",0,0,null,0,0]
["Zwischensumme:",null,{"$f":"SUM(C43:C45)","v":0}]
[]
["Kampfrichterlizenzen:","Die höchste Lizenz zählt","Punkte:",1,4,5,6]
["Bezirkskampfrichter/innen","von-bis",{"$f":"SUM(D49:G49)","v":0},null,0,0,0]
["Landeskampfrichter/innen","von-bis",{"$f":"SUM(D50:G50)","v":0},0,null,0,0]
["Bundeskampfrichter/innen","von-bis",{"$f":"SUM(D51:G51)","v":0},0,0,null,0]
["Internationaler Kampfrichter","von-bis",{"$f":"SUM(D52:G52)","v":0},0,0,0]
["Zwischensumme:",null,{"$f":"SUM(C49:C52)","v":0}]
[]
[{"$nulls":3},"Bei den Punkten gibt es keine Addition"]
["Prüferlizenzen:","Die höchste Lizenz zählt","Punkte:",1,2,3]
["C-Lizenz ",null,{"$f":"SUM(D57:F57)","v":0},null,0,0]
["B-Lizenz ",null,{"$f":"SUM(D58:F58)","v":0},0,null,0]
["A-Lizenz ",null,{"$f":"SUM(D59:F59)","v":0},0,0]
["Zwischensumme:",null,{"$f":"SUM(C57:C59)","v":0}]
[]
["Ehrungen:",null,"Punkte:",1,2,3,4]
["Landesehrung Gold",null,{"$f":"SUM(D63:E63)","v":0},null,0,0,0]
["Bundesehrung Gold",null,{"$f":"SUM(D64:E64)","v":0},0,null,0,0]
["Bundesehrung Platin",null,{"$f":"SUM(D65:E65)","v":0},0,0,null,0]
["DKV Ehrenorden",null,{"$f":"SUM(D66:E66)","v":0},0,0,0]
["Sonstiges (Karatebezug)",null,{"$f":"SUM(D67:D67)","v":0},null,0,0,0]
["Zwischensumme:",null,{"$f":"SUM(C63:C67)","v":0}]
[]
["Sonstiges:","Bei mehrfach Tätigkeit steigende Punktzahlen","Punkte:",1,2,3]
["Publikationen (Buchautor)","Titel: Unterlagen bitte auf Zusatzblatt",{"$f":"SUM(D71:F71)","v":0}]
["Zwischensumme:",null,{"$f":"SUM(C71)","v":0}]
[]
[{"$nulls":3},"Bei den Punkten gibt es keine Addition"]
["Verein/Dojo:","Bei mehrfach Tätigkeit steigende Punktzahlen","Punkte:",1,2,3,4]
["Vorstand/Abteilungsleitung","bis 10 J., bis 20 J., über 20 J.",{"$f":"SUM(D76:G76)","v":0},{"$nulls":3},0]
["Funktionär/innen","bis 10 J., bis 20 J., über 20 J.",{"$f":"SUM(D77:G77)","v":0},{"$nulls":3},0]
["Trainererfolge","Land, Bund, International",0,0]
["DKV-Mitgliederzahlen","bis 50, bis 100, bis 150, über 150",0]
["Hervorgebrachte Dan-Träger","bis 10, bis 15, bis 25, über 25 ",0]
["Sonstiges",null,0,null,0,0,0]
["Zwischensumme:","Mehrfache Tätigkeiten auf Zusatzblatt bzw. Lebenslauf",{"$f":"SUM(C76:C81)","v":0}]
[]
[{"$nulls":3},"Bei den Punkten gibt es keine Addition"]
["Landesverband:",null,"Punkte:",1,2,3,4]
["Geschäftsführendes Präsidium","bis 4 J., bis 8 J., über 8 J., ",{"$f":"SUM(D86:G86)","v":0},0]
["Erweitertes Präsidium","bis 4 J., bis 8 J., bis 12 J., über 12 J.",0]
["Kommissionen",null,0,null,0,0,0]
["Referent/in","bis 4 J., bis 8 J., bis 12 J., über 12 J.",0]
["Landestrainer/in","bis 5 J., bis 10 J., bis 20 J., über 20 J.",0]
["Kadermitglied","bis 2 J., bis 4 J., bis 6 J., über 6 J.",0]
["L-Meisterschaften, 1. Platz","bis 2x, bis 4x, bis 6x, über 6x",0]
["L-Meisterschaften, 2.-3. Platz","bis 2x, bis 4x, bis 6x, über 6x",0]
["Sonstiges","z.B. Orga von Meisterschaften",0,null,0,0,0]
["Zwischensumme:","Mehrfache Tätigkeiten auf Zusatzblatt bzw. Lebenslauf",{"$f":"SUM(C86:C94)","v":0}]
[]
[{"$nulls":3},"Bei den Punkten gibt es keine Addition"]
["Bundesverband:","Bei mehrfach Tätigkeit steigende Punktzahlen","Punkte:",3,4,5,6]
["Geschäftsführendes Präsidium","bis 4 J., bis 8 J., über 8 J., ",{"$f":"SUM(D99:G99)","v":0},0]
["Erweitertes Präsidium","bis 4 J., bis 8 J., bis 12 J., über 12 J.",0]
["Kommissionen",null,0,null,0,0,0]
["Referent/in","bis 4 J., bis 8 J., bis 12 J., über 12 J.",0]
["Kadermitglied","bis 2 J., bis 4 J., bis 6 J., über 6 J.",0]
["DKV-Meisterschaften, 1. Platz","bis 2x, bis 4x, bis 6x, über 6x",0]
["DKV-Meisterschaften, 2.-3. Pl.","bis 2x, bis 4x, bis 6x, über 6x",0]
["Sonstiges","z.B. Orga von Meisterschaften",0,null,0,0,0]
["Zwischensumme:","Mehrfache Tätigkeiten auf Zusatzblatt bzw. Lebenslauf",{"$f":"SUM(C99:C106)","v":0}]
[]
["Trainertätigkeiten:",null,"Punkte:",3,5,6]
["Vereinstrainer",null,{"$f":"SUM(D110:G110)","v":0},null,0,0]
["Landestrainer",null,{"$f":"SUM(D111:G111)","v":0},0,null,0]
["Bundestrainer",null,{"$f":"SUM(D112:G112)","v":0},0,0]
[null,null,{"$f":"SUM(C110:C112)","v":0}]
[]
[{"$nulls":3},"Bei den Punkten gibt es keine Addition"]
["International:","Bei mehrfach Tätigkeit steigende Punktzahlen","Punkte:",3,4,5,6]
["Funktionär/innen","bis 4 J., bis 8 J., bis 12 J., über 12 J.",{"$f":"SUM(D117:G117)","v":0}]
["Meisterschaften, Teilnahme","Zusätzliche Unterlagen, alle Erfolge der Vergangenheit",{"$f":"SUM(D118:G118)","v":0},0,null,0,0]
["Meisterschaften, Erfolge","Zusätzliche Unterlagen, alle Erfolge der Vergangenheit",{"$f":"SUM(D119:G119)","v":0},0,0,0]
["Sonstiges","z.B. Orga von Meisterschaften",{"$f":"SUM(D120:G120)","v":0},null,0,0,0]
["Zwischensumme:","Mehrfache Tätigkeiten auf Zusatzblatt bzw. Lebenslauf",{"$f":"SUM(C117:C120)","v":0}]
["Gesamtergebnis:",null,{"$f":"C40+C46+C53+C60+C68+C72+C82+C95+C107+C113+C121","v":0}]
[]
["Mindestpunktzahl erreicht:",{"$f":"IF(B3=\"\",\"\",IF(AND(B3=\"6. Dan\",C122>=C19),\"JA\",IF(AND(B3=\"7. Dan\",C122>=C20),\"JA\",IF(AND(B3=\"8. Dan\",C122>=C21),\"JA\",\"NEIN\"))))","v":""},null,null,"."]
[]
["Prüfung durchgeführt von:"]
[]
["Stellungnahme Präsidiums LV:"]
[]
["Ort und Datum:"]
[]
[null,"Unterschriften des/der Landesstilrichtungsreferenten/in:"]
[]
[null,"______________________________________________________________"]
[]
["Der Antrag muss unter Einhaltung der vorgegebenen Fristen bei den zuständigen Stilrichtungen/Prüfungsbereichen im Landesverband eingereicht werden."]
[]
["Antrag:","DKV Antragsformular ab 6. Dan"]
["Zusätzliche Anhänge:","Karate-Vita (Lebenslauf)"]
[null,"Dokumente bzw. Passeintragungen über Lizenzen."]
[null,"Durchgängige DKV Jahressichtmarke im Pass, letzten 5 Jahre."]
[null,"Aufstellung über alle vorangegangenen Dan-Prüfungen "]
[null,"Extrablatt:  - Datum - Orte - Prüferkommissionen"]
[null,"Das Ergebnis wird dem/der Antragsteller/-in mitgeteilt. "]